Workbook

Sheet Inicio
B1: INFORMACIÓN SOBRE ESTA PLANTILLA
B2: Usa este libro de presupuesto del evento para realizar un seguimiento de los gastos e ingresos obtenidos de un evento.
B3: Rellena el nombre del evento y escribe la información en las tablas en las hojas de cálculo Gastos e Ingresos.
B4: El gastos Totales y el ingresos Totales se calculan automáticamente.
B5: El resumen de beneficios y pérdidas y el gráfico se actualizan automáticamente en la hoja de cálculo Resumen de beneficias y pérdidas.
B6: Nota:
B7: Se facilitan instrucciones adicionales en la columna A de cada hoja de cálculo. Este texto se ocultó a propósito. Para eliminar el texto, selecciona la columna A y, a continuación, ELIMINAR. Para mostrar el texto, selecciona la columna A y, a continuación, cambia el color de fuente.
B8: Para obtener más información sobre las tablas, presiona las teclas MAYÚS y F10 dentro de una tabla, selecciona la opción TABLA y después TEXTO ALTERNATIVO.

Sheet Gastos
A1: Escribe los gastos estimado y real de cada categoría en las tablas correspondientes de la hoja de cálculo y el nombre del evento en la celda D1 para personalizar el título de esta y otras hojas de cálculo. El subtítulo de esta hoja de cálculo se muestra en la celda H1. Encontrarás instrucciones útiles sobre cómo usar esta hoja de cálculo en las celdas de esta columna. La siguiente instrucción se encuentra en la celda A3. | B1: Presupuesto del evento para nombre del evento | H1: GASTOS
A3: La etiqueta Total de gastos está en la celda de la derecha, la etiqueta Estimado en la celda G3 y Real en H3. | B3: GASTOS TOTALES | G3: Estimado | H3: Real
A4: El Total de gastos estimado en la celda G4 y el Total de gastos reales en H4 se calcula automáticamente. La siguiente instrucción se encuentra en la celda A6. | G4: =SUM(C11,C19,C25,C32,G11,G19,G24) -> $882.00 | H4: =SUM(D11,D19,D25,D32,H11,H19,H24) -> $333.00
A6: Escribe los gastos del sitio en la tabla que comienza en la celda de la derecha y los Gastos De Refrescos en la tabla que comienza en la celda F6. La siguiente instrucción se encuentra en la celda A13. | B6: Sitio | C6: Estimado | D6: Real | F6: Aperitivos | G6: Estimado | H6: Real
B7: Gastos de sala y vestíbulo | C7: $500.00 | F7: Comida
B8: Personal del sitio | F8: Bebidas | G8: $20.00
B9: Equipo | F9: Mantelería | H9: $20.00
B10: Mesas y sillas | F10: Personal y compensaciones
B11: Total | C11: =SUBTOTAL(109,GastosDelSitio[Estimado]) -> $500.00 | D11: =SUBTOTAL(109,GastosDelSitio[Real]) -> $0.00 | F11: Total | G11: =SUBTOTAL(109,GastosDeRefrescos[Estimado]) -> $20.00 | H11: =SUBTOTAL(109,GastosDeRefrescos[Real]) -> $20.00
A13: Escribe los Gastos De Decoración en la tabla que comienza en la celda de la derecha y los gastos de programa en la tabla que comienza en la celda F13. La siguiente instrucción se encuentra en la celda A21. | B13: Decoración | C13: Estimado | D13: Real | F13: Programa | G13: Estimado | H13: Real
B14: Flores | C14: $200.00 | D14: $300.00 | F14: Actores
B15: Velas | F15: Oradores | G15: $30.00
B16: Iluminación | F16: Viajes
B17: Globos | F17: Hotel
B18: Suministros de papel | F18: Otros
B19: Total | C19: =SUBTOTAL(109,GastosDeDecoración[Estimado]) -> $200.00 | D19: =SUBTOTAL(109,GastosDeDecoración[Real]) -> $300.00 | F19: Total | G19: =SUBTOTAL(109,GastosDePrograma[Estimado]) -> $30.00 | H19: =SUBTOTAL(109,GastosDePrograma[Real]) -> $0.00
A21: Escribe los gastos de publicidad en la tabla que comienza en la celda de la derecha y los gastos de premios en la tabla que comienza en la celda F21. La siguiente instrucción se muestra en la celda A27. | B21: Publicidad | C21: Estimado | D21: Real | F21: Premios | G21: Estimado | H21: Real
B22: Trabajo de gráficos | F22: Cintas, placas o trofeos
B23: Fotocopias e impresiones | C23: $20.00 | F23: Regalos | G23: $100.00
B24: Gastos de envío | F24: Total | G24: =SUBTOTAL(109,GastosDePremios[Estimado]) -> $100.00 | H24: =SUBTOTAL(109,GastosDePremios[Real]) -> $0.00
B25: Total | C25: =SUBTOTAL(109,GastosDePublicidad[Estimado]) -> $20.00 | D25: =SUBTOTAL(109,GastosDePublicidad[Real]) -> $0.00
A27: Escribe los gastos varios en la tabla que comienza en la celda de la derecha. | B27: Varios | C27: Estimado | D27: Real
B28: Teléfono | D28: $13.00
B29: Transporte | C29: $12.00
B30: Materiales de papelería
B31: Servicios de fax
B32: Total | C32: =SUBTOTAL(109,GastosVarios[Estimado]) -> $12.00 | D32: =SUBTOTAL(109,GastosVarios[Real]) -> $13.00

Sheet Ingresos
A1: Escribe los ingresos estimado y real de cada categoría en las respectivas tablas de esta hoja de cálculo. El título de esta hoja de cálculo se actualiza automáticamente en la celda de la derecha. El subtítulo está en la celda G1. Encontrarás instrucciones útiles sobre cómo usar esta hoja de cálculo en las celdas de esta columna. La siguiente instrucción se encuentra en la celda A3. | B1: =Gastos!B1 -> Presupuesto del evento para nombre del evento | G1: INGRESOS
A3: La etiqueta ingresos Totales está en la celda de la derecha, la etiqueta Estimado en la celda F3 y Real en G3. | B3: INGRESOS TOTALES | F3: Estimado | G3: Real
A4: El Total de ingresos estimados se calcula automáticamente en la celda F4 y el Total de ingresos reales en G4. | F4: =SUM(Admisiones[[#Totals],[Ingresos estimados]],AnunciosDelPrograma[[#Totals],[Ingresos estimados]],ExpositoresYProveedores[[#Totals],[Ingresos estimados]],VentaDeProductos[[#Totals],[Ingresos estimados]]) -> $1,936.00 | G4: =SUM(Admisiones[[#Totals],[Ingresos reales]],AnunciosDelPrograma[[#Totals],[Ingresos reales]],ExpositoresYProveedores[[#Totals],[Ingresos reales]],VentaDeProductos[[#Totals],[Ingresos reales]]) -> $1,831.00
A5: La etiqueta Entradas está en la celda de la derecha. | B5: ENTRADAS
A6: Escribe el número de entradas estimado y real con tasas de vales en la tabla que empieza en la celda de la derecha. Los ingresos estimados y reales de entradas se calculan automáticamente. La siguiente instrucción se encuentra en la celda A11. | B6: N.º estimado | C6: N.º real | D6: Tipo | E6: Precio | F6: Ingresos estimados | G6: Ingresos reales
B7: 300 | C7: 278 | D7: Adultos a | E7: $5.00 | F7: =B7*E7 -> $1,500.00 | G7: =C7*E7 -> $1,390.00
B8: 197 | C8: 195 | D8: Niños a | E8: $2.00 | F8: =B8*E8 -> $394.00 | G8: =C8*E8 -> $390.00
B9: 42 | C9: 51 | D9: Otros a | E9: $1.00 | F9: =B9*E9 -> $42.00 | G9: =C9*E9 -> $51.00
B10: Total | F10: =SUBTOTAL(109,Admisiones[Ingresos estimados]) -> $1,936.00 | G10: =SUBTOTAL(109,Admisiones[Ingresos reales]) -> $1,831.00
A11: La etiqueta Anuncios del programa se encuentra en la celda de la derecha. | B11: ANUNCIOS DEL PROGRAMA
A12: Escribe el número de anuncios en el programa estimados y reales en el programa y las tasas de anuncios en la tabla que empieza a partir de la celda de la derecha. Los ingresos de anuncios estimados y reales se calculan automáticamente. La siguiente instrucción se encuentra en la celda A17. | B12: N.º estimado | C12: N.º real | D12: Tipo | E12: Precio | F12: Ingresos estimados | G12: Ingresos reales
B13: 12 | D13: Portadas a | F13: =B13*E13 -> $0.00 | G13: =C13*E13 -> $0.00
C14: 158 | D14: Medias páginas a | F14: =B14*E14 -> $0.00 | G14: =C14*E14 -> $0.00
B15: 4 | D15: Cuartos de página a | F15: =B15*E15 -> $0.00 | G15: =C15*E15 -> $0.00
B16: Total | F16: =SUBTOTAL(109,AnunciosDelPrograma[Ingresos estimados]) -> $0.00 | G16: =SUBTOTAL(109,AnunciosDelPrograma[Ingresos reales]) -> $0.00
A17: La etiqueta Expositores o Proveedores se encuentra en la celda de la derecha. | B17: EXPOSITORES Y PROVEEDORES
A18: Escribe el número de expositores estimado y real y las tasas de los puestos en la tabla que empieza en la celda de la derecha. Los ingresos estimados y reales se calculan automáticamente. La siguiente instrucción se encuentra en la celda A23. | B18: N.º estimado | C18: N.º real | D18: Tipo | E18: Precio | F18: Ingresos estimados | G18: Ingresos reales
B19: 23 | D19: Puestos grandes a | F19: =B19*E19 -> $0.00 | G19: =C19*E19 -> $0.00
B20: 354 | D20: Puestos medianos a | F20: =B20*E20 -> $0.00 | G20: =C20*E20 -> $0.00
B21: 56 | D21: Puestos pequeños a | F21: =B21*E21 -> $0.00 | G21: =C21*E21 -> $0.00
B22: Total | F22: =SUBTOTAL(109,ExpositoresYProveedores[Ingresos estimados]) -> $0.00 | G22: =SUBTOTAL(109,ExpositoresYProveedores[Ingresos reales]) -> $0.00
A23: La etiqueta Venta de productos se encuentra en la celda de la derecha. | B23: VENTA DE PRODUCTOS
A24: Escribe el número de productos vendidos estimados y reales en el programa y las tasas de productos en la tabla que empieza a partir de la celda de la derecha. Los ingresos estimados y reales se calculan automáticamente. | B24: N.º estimado | C24: N.º real | D24: Tipo | E24: Precio | F24: Ingresos estimados | G24: Ingresos reales
D25: Productos a | F25: =B25*E25 -> $0.00 | G25: =C25*E25 -> $0.00
B26: 123 | D26: Productos a | F26: =B26*E26 -> $0.00 | G26: =C26*E26 -> $0.00
D27: Productos a | F27: =B27*E27 -> $0.00 | G27: =C27*E27 -> $0.00
B28: 13 | D28: Productos a | F28: =B28*E28 -> $0.00 | G28: =C28*E28 -> $0.00
B29: Total | F29: =SUBTOTAL(109,VentaDeProductos[Ingresos estimados]) -> $0.00 | G29: =SUBTOTAL(109,VentaDeProductos[Ingresos reales]) -> $0.00

Sheet Resumen de pérdidas y ganancias
A1: El Resumen de beneficios y pérdidas y el gráfico que muestra el Total de ingresos y gastos se actualizan automáticamente en esta hoja de cálculo. El título de esta hoja de cálculo se actualiza automáticamente en la celda de la derecha. El subtítulo está en la celdas G1 y G2. Encontrarás instrucciones útiles sobre cómo usar esta hoja de cálculo en las celdas de esta columna. La siguiente instrucción se encuentra en la celda A3. | B1: =Gastos!B1 -> Presupuesto del evento para nombre del evento | G1: BENEFICIOS
G2: Resumen de pérdidas
A3: En la celda E3 hay un gráfico de barras que compara los gastos e ingresos estimados y los gastos e ingresos reales. | E3: En esta celda está el gráfico de barras con una comparación entre los gastos e ingresos estimados y los gastos e ingresos reales.
A4: La tabla de resumen que empieza por la celda de la derecha se actualiza automáticamente. La siguiente instrucción se encuentra en la celda A8. | B4: Total | C4: Estimado | D4: Real
B5: Ingresos totales | C5: =Ingresos!F4 -> $1,936.00 | D5: =Ingresos!G4 -> $1,831.00
B6: Gastos totales | C6: =Gastos!G4 -> $882.00 | D6: =Gastos!H4 -> $333.00
A8: La beneficio Total o pérdidas estimado se calcula automáticamente en la celda C8 y el Total de beneficios y pérdidas real en la celda D8. | B8: Beneficio total (o pérdidas) | C8: =C5-C6 -> $1,054.00 | D8: =D5-D6 -> $1,498.00
